fUSD/lending_fUSD_20260217
["ID","MTS","AMOUNT","RATE_DAILY","PERIOD"]
[405790317,1771312240623,-500.0,0.00010712,2]
[405790318,1771312240633,-446.0,0.00010712,2]
[405790319,1771312240642,-500.0,0.00010712,2]
[405790320,1771312240653,-150.0,0.00010712,2]
[405790321,1771312240663,-150.0,0.00010712,2]
[405790322,1771312240674,-500.0,0.00010767,2]
[405790323,1771312240684,-500.0,0.00010767,2]
[405790324,1771312240694,-500.0,0.00010767,2]
[405790325,1771312240704,-500.0,0.00010767,2]
[405790326,1771312240715,-500.0,0.00010767,2]
[405790327,1771312240726,-150.37957529,0.00010767,2]
[405790328,1771312240736,-500.0,0.00010767,2]
[405790329,1771312240746,-500.0,0.00010767,2]
[405790330,1771312240756,-500.0,0.00010767,2]
[405790331,1771312240766,-500.0,0.00010767,2]
[405790332,1771312240776,-596.0,0.00010767,2]
[405790333,1771312240785,-500.0,0.00010767,2]
[405790334,1771312240795,-150.0,0.00010767,2]
[405790335,1771312240804,-500.0,0.00010767,2]
[405790336,1771312240814,-500.0,0.00010767,2]
[405790337,1771312240824,-500.0,0.00010767,2]
[405790338,1771312240833,-150.0,0.00010767,2]
[405790339,1771312240843,-500.0,0.00010767,2]
[405790340,1771312240853,-500.0,0.00010767,2]
[405790341,1771312240863,-244.28993987,0.00010767,2]
[405790342,1771312240872,-150.0,0.00010767,2]
[405790343,1771312240882,-150.0,0.00010767,2]
[405790344,1771312240892,-150.0,0.00010767,2]
[405790345,1771312240902,-500.0,0.00010767,2]
[405790346,1771312240912,-649.65624143,0.00010767,2]
[405790347,1771312240922,-205.12968692,0.00010767,2]
[405790348,1771312240932,-872.0,0.00010767,2]
[405790349,1771312240941,-4242.0,0.00010767,2]
[405790350,1771312240951,-500.87477363,0.00010767,2]
[405790351,1771312240961,-151.2254874,0.00010767,2]
[405790352,1771312240971,-500.0,0.00010767,2]
[405790353,1771312240981,-500.0,0.00010767,2]
[405790354,1771312240990,-150.07216309,0.00010767,2]
[405790355,1771312241001,-500.0,0.00010767,2]
[405790356,1771312241011,-500.0,0.00010767,2]
[405790357,1771312241022,-500.0,0.00010767,2]
[405790358,1771312241032,-446.0,0.00010767,2]
[405790359,1771312241042,-500.0,0.00010767,2]
[405790360,1771312241052,-500.0,0.00010822,2]
[405790361,1771312241062,-500.0,0.00010822,2]
[405790362,1771312241071,-500.0,0.00010822,2]
[405790363,1771312241084,-500.0,0.00010822,2]
[405790364,1771312241095,-154.49885719,0.00010822,2]
[405790365,1771312241105,-500.0,0.00010822,2]
[405790366,1771312241114,-500.0,0.00010822,2]
[405790367,1771312241129,-500.0,0.00010822,2]
[405790368,1771312241139,-616.5683879,0.00010822,2]
[405790369,1771312241151,-596.0,0.00010822,2]
[405790370,1771312241160,-500.0,0.00010822,2]
[405790371,1771312241170,-201.09695119,0.00010822,2]
[405790372,1771312241180,-500.0,0.00010822,2]
[405790373,1771312241189,-500.0,0.00010822,2]
[405790374,1771312241199,-500.0,0.00010822,2]
[405790375,1771312241208,-242.84628954,0.00010822,2]
[405790376,1771312241218,-152.12850518,0.00010822,2]
[405790377,1771312241227,-500.0,0.00010822,2]
[405790378,1771312241237,-150.0,0.00010822,2]
[405790379,1771312241247,-200.36674187,0.00010822,2]
[405790380,1771312241256,-200.18645604,0.00010822,2]
[405790381,1771312241266,-500.0,0.00010822,2]
[405790382,1771312241276,-872.0,0.00010822,2]
[405790383,1771312241286,-4242.0,0.00010822,2]
[405790384,1771312241296,-500.0,0.00010822,2]
[405790385,1771312241306,-500.0,0.00010822,2]
[405790386,1771312241316,-505.10095498,0.00010822,2]
[405790387,1771312241326,-500.0,0.00010822,2]
[405790388,1771312241335,-446.0,0.00010822,2]
[405790389,1771312241345,-500.0,0.00010822,2]
[405790390,1771312241356,-500.0,0.00010822,2]
[405790391,1771312241365,-500.0,0.00010876,2]
[405790392,1771312241376,-500.0,0.00010876,2]
[405790393,1771312241385,-187.36614029,0.00010876,2]
[405790394,1771312241395,-500.0,0.00010876,2]
[405790395,1771312241405,-500.0,0.00010876,2]
[405790396,1771312241415,-500.0,0.00010876,2]
[405790397,1771312241424,-500.0,0.00010876,2]
[405790398,1771312241433,-596.0,0.00010876,2]
[405790399,1771312241443,-500.0,0.00010876,2]
[405790400,1771312241453,-500.0,0.00010876,2]
[405790401,1771312241462,-500.0,0.00010876,2]
[405790402,1771312241472,-500.0,0.00010876,2]
[405790403,1771312241481,-500.0,0.00010876,2]
[405790404,1771312241491,-200.89245722,0.00010876,2]
[405790405,1771312241501,-500.0,0.00010876,2]
[405790406,1771312241511,-872.0,0.00010876,2]
[405790407,1771312241521,-4242.0,0.00010876,2]
[405790408,1771312241530,-178.36591542,0.00010876,2]
[405790409,1771312241539,-500.0,0.00010876,2]
[405790410,1771312241550,-500.0,0.00010876,2]
[405790411,1771312241560,-446.0,0.00010876,2]
[405790412,1771312241570,-500.0,0.00010876,2]
[405790413,1771312241580,-500.0,0.00010876,2]
[405790414,1771312241590,-500.0,0.00010931,2]
[405790415,1771312241599,-500.0,0.00010931,2]
[405790416,1771312241609,-500.0,0.00010931,2]
[405790417,1771312241619,-500.0,0.00010931,2]
[405790418,1771312241628,-500.0,0.00010931,2]
[405790419,1771312241638,-500.0,0.00010931,2]
[405790420,1771312241647,-596.0,0.00010931,2]
[405790421,1771312241658,-500.0,0.00010931,2]
[405790422,1771312241667,-500.0,0.00010931,2]
[405790423,1771312241677,-500.0,0.00010931,2]
[405790424,1771312241686,-500.0,0.00010931,2]
[405790425,1771312241696,-500.0,0.00010931,2]
[405790426,1771312241706,-500.0,0.00010931,2]
[405790427,1771312241715,-872.0,0.00010931,2]
[405790428,1771312241725,-4242.0,0.00010931,2]
[405790429,1771312241735,-500.0,0.00010931,2]
[405790430,1771312241745,-446.0,0.00010931,2]
[405790431,1771312241755,-500.0,0.00010931,2]
[405790432,1771312241766,-500.0,0.00010931,2]
[405790433,1771312241776,-1551.84,0.00010959,2]
[405790434,1771312241786,-150.0,0.00010959,2]
[405790435,1771312241795,-150.0,0.00010959,2]
[405790436,1771312241805,-166.66,0.00010959,2]
[405790437,1771312241816,-500.97291215,0.00010973,2]
[405790438,1771312241827,-500.32111708,0.00010973,2]
[405790439,1771312241837,-501.16029055,0.00010973,2]
[405790440,1771312241846,-500.0,0.00010973,2]
[405790441,1771312241856,-500.86147052,0.00010973,2]
[405790442,1771312241866,-500.0,0.00010973,2]
[405790443,1771312241875,-502.12798245,0.00010973,2]
[405790444,1771312241885,-239.8459294,0.00010973,2]
[405790445,1771312241895,-500.0,0.00010973,2]
[405790446,1771312241905,-500.0,0.00010973,2]
[405790447,1771312241916,-160.37289206,0.00010973,2]
[405790448,1771312241926,-500.0,0.00010973,2]
[405790449,1771312241936,-500.0,0.00010973,2]
[405790450,1771312241947,-153.2248447,0.00010986,2]
[405790451,1771312241957,-500.0,0.00010986,2]
[405790452,1771312241967,-500.0,0.00010986,2]
[405790453,1771312241977,-500.0,0.00010986,2]
[405790454,1771312241987,-500.0,0.00010986,2]
[405790455,1771312241997,-500.0,0.00010986,2]
[405790456,1771312242008,-596.0,0.00010986,2]
[405790457,1771312242018,-500.33776257,0.00010986,2]
[405790458,1771312242028,-500.0,0.00010986,2]
[405790459,1771312242039,-500.0,0.00010986,2]
[405790460,1771312242049,-500.0,0.00010986,2]
[405790461,1771312242059,-500.0,0.00010986,2]
[405790462,1771312242069,-500.0,0.00010986,2]
[405790463,1771312242080,-872.0,0.00010986,2]
[405790464,1771312242092,-4242.0,0.00010986,2]
[405790465,1771312242102,-500.0,0.00010986,2]
[405790466,1771312242112,-446.0,0.00010986,2]
[405790467,1771312242122,-500.0,0.00010986,2]
[405790468,1771312242133,-500.0,0.00010986,2]
[405790469,1771312242142,-500.0,0.00011041,2]
[405790470,1771312242152,-500.0,0.00011041,2]
[405790471,1771312242164,-500.0,0.00011041,2]
[405790472,1771312242174,-500.0,0.00011041,2]
[405790473,1771312242185,-500.0,0.00011041,2]
[405790474,1771312242195,-596.0,0.00011041,2]
[405790475,1771312242204,-500.0,0.00011041,2]
[405790476,1771312242214,-475.49905426,0.00011041,2]
[405790477,1771312242224,-500.0,0.00011041,2]
[405790478,1771312242234,-630.25617345,0.00011041,2]
[405790479,1771312242244,-382.17209928,0.00011041,2]
[405790480,1771312242254,-872.0,0.00011041,2]
[405790481,1771312242263,-4242.0,0.00011041,2]
[405790482,1771312242273,-500.0,0.00011041,2]
[405790483,1771312242283,-621.12228144,0.00011041,2]
[405790484,1771312242293,-500.0,0.00011041,2]
[405790485,1771312242303,-446.0,0.00011041,2]
[405790486,1771312242314,-166.66,0.00011068,2]
[405790487,1771312242324,-829.0,0.00011069,2]
[405790488,1771312242333,-1098.0,0.0001107,2]
[405790489,1771312242343,-4609.0,0.0001107,2]
[405790490,1771312242353,-500.0,0.00011096,2]
[405790491,1771312242363,-500.0,0.00011096,2]
[405790492,1771312242373,-500.0,0.00011096,2]
[405790493,1771312242382,-500.0,0.00011096,2]
[405790494,1771312242392,-500.0,0.00011096,2]
[405790495,1771312242403,-596.0,0.00011096,2]
[405790496,1771312242413,-500.0,0.00011096,2]
[405790497,1771312242423,-500.0,0.00011096,2]
[405790498,1771312242433,-872.0,0.00011096,2]
[405790499,1771312242443,-4242.0,0.00011096,2]
[405790500,1771312242453,-500.0,0.00011096,2]
[405790501,1771312242465,-500.0,0.00011096,2]
[405790502,1771312242474,-446.0,0.00011096,2]
[405790503,1771312242484,-23617.03509142,0.00011099,2]
[405790504,1771312242494,-23617.03509136,0.00011099,2]
[405790505,1771312242504,-23617.03509136,0.00011099,2]
[405790506,1771312242514,-289.76203498,0.000111,2]
[405790507,1771312242523,-10000.0,0.00011105,2]
[405790508,1771312242534,-500.0,0.0001115,2]
[405790509,1771312242543,-500.0,0.0001115,2]
[405790510,1771312242553,-500.0,0.0001115,2]
[405790511,1771312242563,-500.0,0.0001115,2]
[405790512,1771312242573,-500.0,0.0001115,2]
[405790513,1771312242583,-596.0,0.0001115,2]
[405790514,1771312242593,-500.0,0.0001115,2]
[405790515,1771312242603,-500.0,0.0001115,2]
[405790516,1771312242614,-872.0,0.0001115,2]
[405790517,1771312242624,-4242.0,0.0001115,2]
[405790518,1771312242634,-500.0,0.0001115,2]
[405790519,1771312242644,-500.0,0.0001115,2]
[405790520,1771312242655,-446.0,0.0001115,2]
[405790521,1771312242665,-166.66,0.00011178,2]
[405790522,1771312242675,-155.81655615,0.00011205,2]
[405790523,1771312242686,-153.57378643,0.00011205,2]
[405790524,1771312242696,-500.0,0.00011205,2]
[405790525,1771312242706,-500.0,0.00011205,2]
[405790526,1771312242716,-500.0,0.00011205,2]
[405790527,1771312242727,-596.0,0.00011205,2]
[405790528,1771312242736,-500.0,0.00011205,2]
[405790529,1771312242746,-500.0,0.00011205,2]
[405790530,1771312242756,-872.0,0.00011205,2]
[405790531,1771312242765,-4242.0,0.00011205,2]
[405790532,1771312242775,-500.0,0.00011205,2]
[405790533,1771312242785,-500.0,0.00011205,2]
[405790534,1771312242795,-446.0,0.00011205,2]
[405790535,1771312242805,-255.16,0.00011233,2]
[405790536,1771312242814,-7992.92,0.00011233,2]
[405790537,1771312242825,-500.0,0.0001126,2]
[405790538,1771312242835,-500.0,0.0001126,2]
[405790539,1771312242845,-500.0,0.0001126,2]
[405790540,1771312242855,-596.0,0.0001126,2]
[405790541,1771312242864,-500.0,0.0001126,2]
[405790542,1771312242874,-500.0,0.0001126,2]
[405790543,1771312242884,-872.0,0.0001126,2]
[405790544,1771312242894,-4242.0,0.0001126,2]
[405790545,1771312242904,-500.0,0.0001126,2]
[405790547,1771312242915,-500.0,0.0001126,2]
[405790548,1771312242925,-446.0,0.0001126,2]
[405790549,1771312242935,-166.66,0.00011288,2]
[405790550,1771312242945,-500.0,0.00011315,2]
[405790551,1771312242955,-361.9355564,0.00011315,2]
[405790552,1771312242965,-500.0,0.00011315,2]
[405790553,1771312242975,-596.0,0.00011315,2]
[405790554,1771312242985,-500.0,0.00011315,2]
[405790555,1771312242995,-163.51122534,0.00011315,2]
[405790556,1771312243005,-872.0,0.00011315,2]
[405790557,1771312243015,-4242.0,0.00011315,2]
[405790558,1771312243025,-500.0,0.00011315,2]
[405790559,1771312243036,-500.0,0.00011315,2]
[405790560,1771312243046,-446.0,0.00011315,2]
[405790561,1771312243056,-3600.584651,0.00011322,2]
[405790563,1771312243066,-832.244371,0.00011322,2]
[405790564,1771312243076,-8135.982,0.00011322,2]
[405790565,1771312243089,-23617.03509136,0.00011343,2]
[405790566,1771312243101,-500.0,0.0001137,2]
[405790567,1771312243111,-500.0,0.0001137,2]
[405790568,1771312243124,-596.0,0.0001137,2]
[405790569,1771312243140,-500.0,0.0001137,2]
[405790570,1771312243150,-872.0,0.0001137,2]
[405790571,1771312243161,-4242.0,0.0001137,2]
[405790572,1771312243170,-500.0,0.0001137,2]
[405790573,1771312243181,-500.0,0.0001137,2]
[405790574,1771312243191,-446.0,0.0001137,2]
[405790575,1771312243201,-166.66,0.00011397,2]
[405790576,1771312243211,-1554.234143,0.000114,2]
[405790577,1771312243222,-500.0,0.00011424,2]
[405790578,1771312243232,-498.26652801,0.00011424,2]
[405790579,1771312243243,-596.0,0.00011424,2]
[405790580,1771312243252,-500.0,0.00011424,2]
[405790581,1771312243262,-872.0,0.00011424,2]
[405790582,1771312243272,-4242.0,0.00011424,2]
[405790583,1771312243282,-500.0,0.00011424,2]
[405790584,1771312243292,-446.0,0.00011424,2]
[405790585,1771312243301,-611.76249723,0.00011479,2]
[405790586,1771312243311,-596.0,0.00011479,2]
[405790587,1771312243320,-500.0,0.00011479,2]
[405790588,1771312243330,-872.0,0.00011479,2]
[405790589,1771312243339,-4242.0,0.00011479,2]
[405790590,1771312243349,-500.0,0.00011479,2]
[405790591,1771312243358,-446.0,0.00011479,2]
[405790592,1771312243367,-4193.06,0.00011507,2]
[405790593,1771312243377,-166.66,0.00011507,2]
[405790594,1771312243386,-1000.0,0.00011521,2]
[405790595,1771312243396,-643.23767655,0.00011521,2]
[405790596,1771312243407,-1000.0,0.00011521,2]
[405790597,1771312243416,-1000.0,0.00011521,2]
[405790598,1771312243427,-1000.0,0.00011521,2]
[405790599,1771312243437,-502.71949542,0.00011521,2]
[405790600,1771312243447,-596.0,0.00011534,2]
[405790601,1771312243457,-500.0,0.00011534,2]
[405790602,1771312243467,-872.0,0.00011534,2]
[405790603,1771312243477,-4242.0,0.00011534,2]
[405790604,1771312243487,-446.0,0.00011534,2]
[405790605,1771312243498,-500.0,0.00011534,2]
[405790606,1771312243508,-596.0,0.00011589,2]
[405790607,1771312243518,-500.0,0.00011589,2]
[405790608,1771312243528,-872.0,0.00011589,2]
[405790609,1771312243538,-4242.0,0.00011589,2]
[405790610,1771312243548,-500.0,0.00011589,2]
[405790611,1771312243558,-446.0,0.00011589,2]
[405790612,1771312243568,-596.0,0.00011644,2]
[405790613,1771312243578,-500.0,0.00011644,2]
[405790614,1771312243588,-872.0,0.00011644,2]
[405790615,1771312243598,-4242.0,0.00011644,2]
[405790616,1771312243608,-500.0,0.00011644,2]
[405790617,1771312243618,-446.0,0.00011644,2]
[405790619,1771312243629,-500.0,0.00011698,2]
[405790621,1771312243639,-500.0,0.00011698,2]
[405790624,1771312243649,-150.0,0.00011698,2]
[405790626,1771312243659,-596.0,0.00011698,2]
[405790628,1771312243669,-500.0,0.00011698,2]
[405790629,1771312243678,-872.0,0.00011698,2]
[405790631,1771312243688,-4242.0,0.00011698,2]
[405790633,1771312243698,-481.0942881,0.00011698,2]
[405790635,1771312243708,-446.0,0.00011698,2]
[405790637,1771312243718,-502.16866536,0.00011753,2]
[405790640,1771312243728,-500.0,0.00011753,2]
[405790641,1771312243738,-150.0,0.00011753,2]
[405790642,1771312243748,-596.0,0.00011753,2]
[405790643,1771312243758,-500.0,0.00011753,2]
[405790645,1771312243767,-872.0,0.00011753,2]
[405790647,1771312243777,-4242.0,0.00011753,2]
[405790649,1771312243787,-446.0,0.00011753,2]
[405790650,1771312243797,-500.0,0.00011808,2]
[405790651,1771312243807,-150.0,0.00011808,2]
[405790652,1771312243817,-596.0,0.00011808,2]
[405790653,1771312243827,-500.0,0.00011808,2]
[405790654,1771312243837,-872.0,0.00011808,2]
[405790655,1771312243847,-4242.0,0.00011808,2]
[405790656,1771312243857,-446.0,0.00011808,2]
[405790657,1771312243867,-500.0,0.00011862,2]
[405790658,1771312243878,-150.0,0.00011862,2]
[405790659,1771312243888,-596.0,0.00011863,2]
[405790660,1771312243898,-500.0,0.00011863,2]
[405790661,1771312243908,-872.0,0.00011863,2]
[405790662,1771312243918,-4242.0,0.00011863,2]
[405790663,1771312243931,-446.0,0.00011863,2]
[405790664,1771312243941,-329.95129651,0.00011917,2]
[405790665,1771312243951,-250.53819001,0.00011917,2]
[405790666,1771312243961,-596.0,0.00011917,2]
[405790667,1771312243972,-500.0,0.00011917,2]
[405790668,1771312243982,-872.0,0.00011917,2]
[405790669,1771312243993,-4242.0,0.00011917,2]
[405790670,1771312244003,-446.0,0.00011917,2]
[405790671,1771312244014,-600.2655769,0.00011972,2]
[405790672,1771312244024,-512.26030593,0.00011972,2]
[405790673,1771312244036,-887.15179644,0.00011972,2]
[405790674,1771312244046,-4242.729734,0.00011972,2]
[405790675,1771312244056,-460.0,0.00011972,2]
[405790676,1771312244067,-30336.8,0.00012055,2]
[405790677,1771312244077,-1500.0,0.00012068,2]
[405790678,1771312244091,-1500.0,0.00012068,2]
[405790679,1771312244100,-1500.0,0.00012068,2]
[405790680,1771312244110,-1500.0,0.00012068,2]
[405790681,1771312244120,-6453.0,0.00012177,2]
[405790682,1771312244132,-552.0,0.00012238,2]
[405790683,1771312244142,-23617.03509136,0.00012436,2]
[405790684,1771312244153,-1799.80965345,0.00012616,2]
[405790685,1771312244165,-2000.0,0.00012616,2]
[405790686,1771312244175,-368.72151799,0.00012616,2]
[405790687,1771312244184,-2000.0,0.00012616,2]
[405790688,1771312244194,-331.0,0.0001306,2]
[405790689,1771312244204,-173.85722099,0.000131,2]
[405790690,1771312244213,-502.39964348,0.00013164,2]
[405790691,1771312244224,-2500.0,0.00013164,2]
[405790692,1771312244234,-9035.0,0.00013395,2]
[405790693,1771312244243,-3240.0,0.00013425,2]
[405790694,1771312244253,-23617.03509136,0.00013529,2]
[405790695,1771312244263,-500.0,0.00013698,2]
[405790696,1771312244273,-286.9609652,0.00013698,2]
[405790697,1771312244282,-500.0,0.00013698,2]
[405790698,1771312244292,-506.79858148,0.00013698,2]
[405790699,1771312244302,-500.0,0.00013698,2]
[405790700,1771312244312,-500.0,0.00013698,2]
[405790701,1771312244322,-500.0,0.00013698,2]
[405790702,1771312244332,-500.0,0.00013698,2]
[405790703,1771312244344,-500.0,0.00013698,2]
[405790704,1771312244354,-500.0,0.00013698,2]
[405790705,1771312244613,-500.0,0.00013698,2]
[405790706,1771312244624,-500.0,0.00013698,2]
[405790707,1771312244634,-500.0,0.00013698,2]
[405790708,1771312244644,-500.0,0.00013698,2]
[405790709,1771312244654,-500.0,0.00013698,2]
[405790710,1771312244664,-500.0,0.00013698,2]
[405790711,1771312244674,-500.0,0.00013698,2]
[405790712,1771312244684,-500.0,0.00013698,2]
[405790713,1771312244693,-500.0,0.00013698,2]
[405790714,1771312244703,-500.0,0.00013698,2]
[405790715,1771312244713,-500.0,0.00013698,2]
[405790716,1771312244722,-505.24249427,0.00013698,2]
[405790717,1771312244732,-500.0,0.00013698,2]
[405790718,1771312244742,-500.0,0.00013698,2]
[405790719,1771312244751,-500.0,0.00013698,2]
[405790720,1771312244761,-500.0,0.00013698,2]
[405790721,1771312244770,-500.0,0.00013698,2]
[405790722,1771312244780,-500.0,0.00013698,2]
[405790723,1771312244789,-500.0,0.00013698,2]
[405790724,1771312244799,-500.0,0.00013698,2]
[405790725,1771312244808,-500.0,0.00013698,2]
[405790726,1771312244818,-154.45149982,0.00013698,2]
[405790727,1771312244828,-535.55684817,0.00013698,2]
[405790728,1771312244838,-500.0,0.00013698,2]
[405790729,1771312244848,-500.0,0.00013698,2]
[405790730,1771312244857,-500.0,0.00013698,2]
[405790731,1771312244867,-639.90682726,0.00013698,2]
[405790732,1771312244877,-679.08,0.00013698,2]
[405790733,1771312244886,-679.08,0.00013698,2]
[405790734,1771312244896,-679.08,0.00013698,2]
[405790735,1771312244907,-679.08,0.00013698,2]
[405790736,1771312244919,-679.08,0.00013698,2]
[405790737,1771312244929,-679.08,0.00013698,2]
[405790738,1771312244939,-679.08,0.00013698,2]
[405790739,1771312244949,-349.69131006,0.00013698,2]
[405790740,1771312244959,-1125.16,0.00013698,2]
[405790741,1771312244969,-1125.16,0.00013698,2]
[405790742,1771312244979,-1125.16,0.00013698,2]
[405790743,1771312244989,-1125.16,0.00013698,2]
[405790744,1771312244999,-1125.16,0.00013698,2]
[405790745,1771312245009,-1125.16,0.00013698,2]
[405790746,1771312245019,-1125.16,0.00013698,2]
[405790747,1771312245028,-1125.16,0.00013698,2]
[405790748,1771312245038,-1125.16,0.00013698,2]
[405790749,1771312245049,-1125.16,0.00013698,2]
[405790750,1771312245059,-1125.16,0.00013698,2]
[405790751,1771312245068,-1125.16,0.00013698,2]
[405790752,1771312245078,-1125.16,0.00013698,2]
[405790753,1771312245092,-1125.16,0.00013698,2]
[405790754,1771312245102,-1125.16,0.00013698,2]
[405790755,1771312245112,-1125.16,0.00013698,2]
[405790756,1771312245123,-1125.16,0.00013698,2]
[405790757,1771312245132,-1125.16,0.00013698,2]
[405790758,1771312245142,-1125.16,0.00013698,2]
[405790759,1771312245152,-456.05800986,0.00013698,2]
[405790760,1771312245163,-500.0,0.00013698,2]
[405790761,1771312245172,-500.0,0.00013698,2]
[405790762,1771312245182,-500.0,0.00013698,2]
[405790763,1771312245192,-500.0,0.00013698,2]
[405790764,1771312245201,-500.0,0.00013698,2]
[405790765,1771312245211,-500.0,0.00013698,2]
[405790766,1771312245220,-500.0,0.00013698,2]
[405790767,1771312245231,-500.0,0.00013698,2]
[405790768,1771312245240,-500.0,0.00013698,2]
[405790769,1771312245250,-500.0,0.00013698,2]
[405790770,1771312245259,-430.55674509,0.00013698,2]
[405790771,1771312245269,-500.0,0.00013698,2]
[405790772,1771312245279,-500.0,0.00013698,2]
[405790773,1771312245288,-500.0,0.00013698,2]
[405790774,1771312245298,-500.0,0.00013698,2]
[405790775,1771312245307,-511.5660924,0.00013698,2]
[405790776,1771312245317,-500.0,0.00013698,2]
[405790777,1771312245326,-529.40507312,0.00013698,2]
[405790778,1771312245336,-915.21,0.00013698,2]
[405790779,1771312245346,-915.21,0.00013698,2]
[405790780,1771312245355,-915.21,0.00013698,2]
[405790781,1771312245364,-915.21,0.00013698,2]
[405790782,1771312245375,-915.21,0.00013698,2]
[405790783,1771312245384,-915.21,0.00013698,2]
[405790784,1771312245393,-915.21,0.00013698,2]
[405790785,1771312245404,-915.21,0.00013698,2]
[405790786,1771312245414,-915.21,0.00013698,2]
[405790787,1771312245423,-915.21,0.00013698,2]
[405790788,1771312245433,-915.21,0.00013698,2]
[405790789,1771312245443,-915.21,0.00013698,2]
[405790790,1771312245452,-915.21,0.00013698,2]
[405790791,1771312245462,-915.21,0.00013698,2]
[405790792,1771312245471,-915.21,0.00013698,2]
[405790793,1771312245481,-915.21,0.00013698,2]
[405790794,1771312245491,-915.21,0.00013698,2]
[405790795,1771312245501,-915.21,0.00013698,2]
[405790796,1771312245510,-500.0,0.00013698,2]
[405790797,1771312245520,-500.0,0.00013698,2]
[405790798,1771312245530,-500.0,0.00013698,2]
[405790799,1771312245539,-500.0,0.00013698,2]
[405790800,1771312245549,-500.0,0.00013698,2]
[405790801,1771312245559,-500.0,0.00013698,2]
[405790802,1771312245568,-500.0,0.00013698,2]
[405790803,1771312245578,-500.0,0.00013698,2]
[405790804,1771312245587,-500.0,0.00013698,2]
[405790805,1771312245597,-500.0,0.00013698,2]
[405790806,1771312245606,-500.0,0.00013698,2]
[405790807,1771312245616,-500.0,0.00013698,2]
[405790808,1771312245626,-500.0,0.00013698,2]
[405790809,1771312245636,-500.0,0.00013698,2]
[405790810,1771312245646,-500.0,0.00013698,2]
[405790811,1771312245655,-500.0,0.00013698,2]
[405790812,1771312245666,-500.0,0.00013698,2]
[405790813,1771312245676,-538.27974596,0.00013698,2]
[405790814,1771312245686,-500.0,0.00013698,2]
[405790815,1771312245696,-500.0,0.00013698,2]
[405790816,1771312245706,-500.0,0.00013698,2]
[405790817,1771312245716,-307.44205355,0.00013698,2]
[405790818,1771312245727,-500.0,0.00013698,2]
[405790819,1771312245737,-500.0,0.00013698,2]
[405790821,1771312245747,-500.0,0.00013698,2]
[405790824,1771312245758,-500.0,0.00013698,2]
[405790826,1771312245768,-500.0,0.00013698,2]
[405790828,1771312245778,-500.0,0.00013698,2]
[405790829,1771312245788,-500.0,0.00013698,2]
[405790830,1771312245798,-500.0,0.00013698,2]
[405790831,1771312245808,-500.0,0.00013698,2]
[405790832,1771312245818,-500.0,0.00013698,2]
[405790833,1771312245829,-500.0,0.00013698,2]
[405790834,1771312245839,-500.0,0.00013698,2]
[405790835,1771312245849,-500.0,0.00013698,2]
[405790836,1771312245859,-500.0,0.00013698,2]
[405790837,1771312245869,-500.0,0.00013698,2]
[405790838,1771312245879,-500.0,0.00013698,2]